Workbook

Sheet version control
B2: Version Control
B3: Version # | C3: Date updated and published | D3: Description of Update
B4: 1.0 | C4: 2023-02-24 | D4: Released as Appendix A in the AT Guide to Cost Estimation.

Sheet Estimate Summary Sheet
C2: AT COST ESTIMATE CALCULATION AND SUMMARY SHEET | F2: v: | G2: 1.0 | N2: AT only provides estimates at these phase activities incl for costs for all following phases. | O2: Project PHASE | P2: Activity(new term) | Q2: AT EPMF Stage-gate | R2: Activity(old term) | S2: Estimate Type | T2: P50 range | U2: P95 range | V2: Comments
C3: Based on NZTA SM014 August 2021 template | O3: Project Development | P3: Programme Business Case | Q3: 1 | R3: Project Feasibility Report | S3: PBE | T3: 40 - 60% | U3: 70 - 150%
C4: Estimate Type(select drop down adjacent): | D4: Programme Business Case | H4: =VLOOKUP(D4,P3:S7,4,FALSE) -> PBE | P4: Indicative Business Case | Q4: 2 | R4: Investigation & Reporting | S4: IBE | T4: 30 - 50% | U4: 50 - 70%
C5: Scheme Name: | D5: Typical % ranges: | F5: =VLOOKUP($H$4,$S$3:$U$7,2,FALSE) -> 40 - 60% | H5: =VLOOKUP($H$4,$S$3:$U$7,3,FALSE) -> 70 - 150% | P5: Detailed Business Case | R5: Investigation & Reporting | S5: DBE | T5: 30 - 50% | U5: 50 - 70% | V5: Project Development Estimates are set to NIL as these are now sunk costs
B6: ITEM | C6: PHASE | D6: Base Estimate | F6: Contingency P50 | G6: 50% | H6: Funding Risk Contingency P95 | I6: 70% | O6: Pre-Implementation | P6: Pre-Implementation 1 | Q6: 3 | R6: Design & Project Documentation | S6: PE1 | T6: 20 - 40% | U6: 40 - 60% | V6: Project Development Estimates are set to NIL as these are now sunk costs
B7: A | C7: Net Project property Cost | D7: 0 | F7: 0 | H7: 0 | P7: Pre-Implementation 2 | R7: Engineer's Estimate(EE) | S7: PE2(EE) | T7: 15 - 20% | U7: 20 - 30% | V7: Project Development & Pre-Implementation Phase Estimate 1 are set to NIL as these are now sunk costs
B8: B | C8: Project Development Phase | E8: as % of physical wks D.2 excl escal | O8: Implementation | P8: Implementation (Tender awarded) | Q8: - | R8: Construction, MSQA | S8: IE | T8: 15% | U8: 15-20% | V8: Winning tender prices known for build and MSQA suppliers, only construction variation risks to allow for. AT does not do IE's.
C9: Consultancy Fees | D9: =(D$57-D$55)*E9 -> 0 | F9: =D9*G9 -> 0 | G9: =G$6 -> 50% | H9: =D9*I9 -> 0 | I9: =I$6-G$6 -> 20% | P9: Notes: | R9: 1. Lower end P95 cannot be lower than the high end of the P50 when applied to the Base Estimate.
C10: AT managed costs | D10: =(D$57-D$55)*E10 -> 0 | F10: =D10*G10 -> 0 | G10: =G$6 -> 50% | H10: =D10*I10 -> 0 | I10: =I$6-G$6 -> 20% | R10: 2. The P50 and P95 adopted must be separated by at least 10%
C11: Waka Kotahi managed costs | D11: 0 | E11: 1.0% | F11: =D11*G11 -> 0 | G11: =G$6 -> 50% | H11: =D11*I11 -> 0 | I11: =I$6-G$6 -> 20% | R11: 3. P50 and P95 are added to the escalated base estimate cost.
C12: Kiwirail managed costs | D12: 0 | E12: 1.0% | F12: 0 | G12: 50% | H12: 0 | I12: 20% | R12: 4. The Funding Risk Contingency is the difference between the two.
C13: Project Development Phase Escalation | D13: 0 | E13: =IF(D14=0,"0%",D13/SUM(D9:D12)) -> 0% | F13: =D13*G13 -> 0 | G13: =G$6 -> 50% | H13: =D13*I13 -> 0 | I13: 20%
B14: B | C14: Total Project Development: | D14: =SUM(D9:D13) -> 0 | E14: =SUM(E9:E13) -> 2.0% | F14: =SUM(F9:F13) -> 0 | H14: =SUM(H9:H13) -> 0
B16: C | C16: Pre-Implementation Phase | E16: as % of physical wks D.2 excl escal
C17: Consultancy Fees | D17: =(D$57-D$55)*E17 -> 0 | F17: =D17*G17 -> 0 | G17: =G$6 -> 50% | H17: =D17*I17 -> 0 | I17: =I$6-G$6 -> 20%
C18: AT managed costs(incl consent fees) | D18: =(D$57-D$55)*E18 -> 0 | F18: 0 | G18: 50% | H18: 0 | I18: 20%
C19: Waka Kotahi managed costs | D19: =(D$57-D$55)*E19 -> 0 | E19: 2.0% | F19: =D19*G19 -> 0 | G19: 50% | H19: =D19*I19 -> 0 | I19: =I$6-G$6 -> 20%
C20: Kiwirail managed costs | D20: 0 | E20: 2.0% | F20: 0 | G20: 50% | H20: 0 | I20: 20%
C21: Pre-Implementation Phase Escalation | D21: 0 | E21: =IF(D22=0,"0%",D21/SUM(D17:D20)) -> 0% | F21: =D21*G21 -> 0 | G21: 50% | H21: =D21*I21 -> 0 | I21: 20%
B22: C | C22: Total Pre-Implementation: | D22: =SUM(D17:D21) -> 0 | E22: =SUM(E17:E21) -> 4.0% | F22: =SUM(F17:F21) -> 0 | H22: =SUM(H17:H21) -> 0
B24: D | C24: Implementation Phase
B25: D.1 | C25: Implementation Fees (MSQA); | E25: as % of physical wks D.2 excl escal
C26: Consultancy Fees | D26: =(D$57-D$55)*E26 -> 0 | F26: =D26*G26 -> 0 | G26: =G$6 -> 50% | H26: =D26*I26 -> 0 | I26: =I$6-G$6 -> 20%
C27: AT managed costs | D27: 0 | F27: 0 | G27: 50% | H27: 0 | I27: 20%
C28: Waka Kotahi managed costs | D28: =(D$57-D$55)*E28 -> 0 | E28: 1.5% | F28: =D28*G28 -> 0 | G28: 50% | H28: =D28*I28 -> 0 | I28: =I$6-G$6 -> 20%
C29: Kiwirail costs(BOL related, safety personnel, permits etc) | D29: 0 | E29: 1.5% | F29: =D29*G29 -> 0 | G29: 50% | H29: =D29*I29 -> 0 | I29: 20%
C30: Consent monitoring fees | D30: 0 | E30: 1.0% | F30: 0 | G30: 50% | H30: 0 | I30: 20%
C31: Implementation Phase Fees Escalation | D31: 0 | E31: =IF(D32=0,"0%",D31/SUM(D26:D30)) -> 0% | F31: =D31*G31 -> 0 | G31: 50% | H31: =D31*I31 -> 0 | I31: 20%
C32: D.1 Subtotal Base Implementation Fees: | D32: =SUM(D26:D31) -> 0 | E32: =SUM(E26:E31) -> 4.0% | F32: =SUM(F26:F31) -> 0 | H32: =SUM(H26:H31) -> 0
B33: D.2 | C33: Physical Works (costs incl offsite OH and profit)
B34: 1 | F34: =D34*G34 -> 0 | G34: =G$6 -> 50% | H34: =D34*I34 -> 0 | I34: =I$6-G$6 -> 20%
B35: 2 | F35: 0 | G35: 50% | H35: 0 | I35: 20%
B36: 3 | F36: 0 | G36: 50% | H36: 0 | I36: 20%
B37: 4 | F37: 0 | G37: 50% | H37: 0 | I37: 20%
B38: 5 | F38: 0 | G38: 50% | H38: 0 | I38: 20%
B39: 6 | F39: 0 | G39: 50% | H39: 0 | I39: 20%
B40: 7 | F40: 0 | G40: 50% | H40: 0 | I40: 20%
B41: 8 | F41: 0 | G41: 50% | H41: 0 | I41: 20%
B42: 9 | F42: =D42*G42 -> 0 | G42: 50% | H42: =D42*I42 -> 0 | I42: 20%
B43: 10 | F43: 0 | G43: 50% | H43: 0 | I43: 20%
B44: 11 | F44: 0 | G44: 50% | H44: 0 | I44: 20%
B45: 12 | F45: 0 | G45: 50% | H45: 0 | I45: 20%
B46: 13 | F46: 0 | G46: 50% | H46: 0 | I46: 20%
B47: 14 | F47: 0 | G47: 50% | H47: 0 | I47: 20%
B48: 15 | F48: 0 | G48: 50% | H48: 0 | I48: 20%
B49: 16 | F49: 0 | G49: 50% | H49: 0 | I49: 20%
B50: 17 | F50: 0 | G50: 50% | H50: 0 | I50: 20%
B51: 18 | C51: Environmental Management as % of above 1-17 | D51: =SUM(D34:D50)*E51 -> 0 | E51: 2.5% | F51: 0 | G51: 50% | H51: 0 | I51: 20%
B52: 19 | C52: Traffic Management as % of above 1-18 | D52: =SUM(D34:D51)*E52 -> 0 | E52: 20.0% | F52: =D52*G52 -> 0 | G52: 50% | H52: =D52*I52 -> 0 | I52: 20%
B53: 20 | C53: Onsite overheads - fixed and variable as % of above 1-19 | D53: =SUM(D34:D52)*E53 -> 0 | E53: 17.5% | F53: 0 | G53: 50% | H53: 0 | I53: 20%
B54: 21 | C54: Risk Register treatment | F54: =D54*G54 -> 0 | G54: 50% | H54: =D54*I54 -> 0 | I54: 20%
B55: 22 | C55: Physical works escalation | D55: 0 | E55: =IF(D57=0,"0%",D55/SUM(D34:D54)) -> 0% | F55: =D55*G55 -> 0 | G55: 50% | H55: =D55*I55 -> 0 | I55: 20%
C57: D.2 Subtotal Base Physical Works | D57: =SUM(D34:D56) -> 0 | F57: =SUM(F34:F56) -> 0 | H57: =SUM(H34:H56) -> 0
B58: D | C58: TOTAL IMPLEMENTATION | D58: =D32+D57 -> 0 | F58: =F32+F57 -> 0 | H58: =H32+H57 -> 0
B59: E | C59: BASE ESTIMATE (A+B+C+D) | D59: =D7+D14+D22+D58 -> 0
B61: F | C61: Contingency (Assessed/Analysed) (A+B+C+D) | F61: =F7+F14+F22+F58 -> 0
B62: G | C62: Expected Estimate | D62: (E+F) | F62: =D59+F61 -> 0
C63: AT Admin Fee (G*5.7%) | D63: 5.7% | F63: =F62*D63 -> 0
B64: G1 | C64: Expected Estimate incl AT Admin Fee | F64: =F62+F63 -> 0
D65: Net of AT Admin fee | F65: Incl AT Admin Fee
B66: Property Cost expected estimate | D66: =D7+F7 -> 0 | F66: =(D7+F7)*(1+D63) -> 0
B67: Project Development expected estimate | D67: =D14+F14 -> 0 | F67: =(D14+F14)*(1+D63) -> 0
B68: Pre-Implementation expected estimate | D68: =D22+F22 -> 0 | F68: =(D22+F22)*(1+D63) -> 0
B69: Implementation expected estimate | D69: =D58+F58 -> 0 | F69: =(D58+F58)*(1+D63) -> 0
B71: H | C71: Funding Risk (Assessed/Analysed) | H71: =H7+H14+H22+H58 -> 0
B72: I | C72: 95th Percentile Project Estimate | F72: (G+H) | H72: =F62+H71 -> 0
C73: AT Admin Fee (I*5.7%) | F73: 5.7% | H73: =H72*F73 -> 0
C74: 95th Percentile Project Estimate incl AT Admin Fee | H74: =H72+H73 -> 0
F75: Net of AT Admin fee | H75: Incl AT Admin Fee
B76: Property Cost 95th percentile estimate | F76: =D7+H7 -> 0 | H76: =(D7+H7)*(1+F73) -> 0
B77: Project Development 95th percentile estimate | F77: =D14+H14 -> 0 | H77: =(D14+H14)*(1+F73) -> 0
B78: Pre-Implementation 95th percentile estimate | F78: =D22+H22 -> 0 | H78: =(D22+H22)*(1+F73) -> 0
B79: Implementation 95th percentile estimate | F79: =D58+H58 -> 0 | H79: =(D58+H58)*(1+F73) -> 0
C81: Date of estimate: | G81: Cost index (Qtr/Year)
C82: Estimate prepared by
C83: Estimate internal peer review by
C84: Estimate external peer review by
C85: Estimate accepted by WK
B88: 1 | C88: This estimate excludes GST
B89: 2 | C89: The D.2 base estimate section may be added to as necessary, noting point 3 below.
B90: 3 | C90: It is the responsibility of the estimator/user of this spreadsheet, to ensure that formulae are correct and providing the expected outputs.
B91: 4 | C91: The estimator is to provide all supporting detailed estimate calculation spreadsheets as an added tab or tabs to this summary and suitably linked.

Sheet Escalation Calc
A1: ='Estimate Summary Sheet'!C5 -> Scheme Name: | F1: Projected costflow based on assumed construction completion year.
C3: Current date of estimate;
A4: PHYSICAL WORKS | C4: =NOW() -> 2023-05-16T18:22:29.920 | F4: =DATE(YEAR(C4)+1,MONTH(C4),DAY(C4)) -> 2024-05-16 | G4: =DATE(YEAR(F4)+1,MONTH(F4),DAY(F4)) -> 2025-05-16 | H4: =DATE(YEAR(G4)+1,MONTH(G4),DAY(G4)) -> 2026-05-16 | I4: =DATE(YEAR(H4)+1,MONTH(H4),DAY(H4)) -> 2027-05-16 | J4: 2028-05-16 | K4: 2029-05-16 | L4: 2030-05-16 | M4: 2031-05-16 | N4: 2032-05-16
A5: Estimator to enter assumed annual fluctuation profile: (% shown in template are for example only) | F5: -1% | G5: 0% | H5: 1% | I5: 2% | J5: 3% | K5: 3% | L5: 3% | M5: 3% | N5: 3%
A7: Name | C7: Base Estimate D.2 based on current year "0" rates. | D7: Row ID | E7: Year # constructed or completed; | F7: YEAR PROFILE | O7: Escalated Base Estimate | P7: Escalation
C8: 0 | F8: 1 | G8: 2 | H8: 3 | I8: 4 | J8: 5 | K8: 6 | L8: 7 | M8: 8 | N8: 9
C9: $1,000,000 | D9: 2 | E9: 5 | F9: =IF(F$8<=$E9,C9*(1+F$5),"") -> $990,000 | G9: =IF(G$8<=$E9,F9*(1+G$5),"") -> $990,000 | H9: =IF(H$8<=$E9,G9*(1+H$5),"") -> $999,900 | I9: $1,019,898 | J9: $1,050,495 | O9: =HLOOKUP(E9,$F$8:$N$22,D9,FALSE) -> $1,050,495 | P9: =O9-C9 -> $50,495
D10: 3 | E10: 1 | F10: =IF(F$8<=$D10,C10*(1+F$5),"") -> 0 | G10: =IF(G$8<=$E10,F10*(1+G$5),"") ->  | O10: 0 | P10: =O10-C10 -> 0
D11: 4 | E11: 1 | F11: 0 | O11: 0 | P11: 0
D12: 5 | E12: 1 | F12: 0 | O12: 0 | P12: 0
D13: 6 | E13: 1 | F13: 0 | O13: 0 | P13: 0
D14: 7 | E14: 1 | F14: 0 | O14: 0 | P14: 0
D15: 8 | E15: 1 | F15: =IF(F$8<=$E15,C15*(1+F$5),"") -> 0 | G15: =IF(G$8<=$E15,F15*(1+G$5),"") ->  | O15: 0 | P15: 0
D16: 9 | E16: 1 | F16: 0 | G16: =IF(G$8<=$E16,F16*(1+G$5),"") ->  | O16: 0 | P16: 0
D17: 10 | E17: 1 | F17: 0 | O17: 0 | P17: 0
D18: 11 | E18: 1 | F18: 0 | O18: 0 | P18: 0
D19: 12 | E19: 1 | F19: 0 | O19: 0 | P19: 0
D20: 13 | E20: 1 | F20: 0 | O20: 0 | P20: 0
D21: 14 | E21: 1 | F21: 0 | G21: =IF(G$8<=$E21,F21*(1+G$5),"") ->  | O21: 0 | P21: 0
D22: 15 | E22: 1 | F22: 0 | G22: =IF(G$8<=$E22,F22*(1+G$5),"") ->  | O22: 0 | P22: 0
B23: TOTAL | C23: =SUM(C9:C22) -> $1,000,000 | O23: =SUM(O9:O22) -> $1,050,495 | P23: =SUM(P9:P22) -> $50,495
F25: Projected costflow based on assumed construction completion year.
C27: Current date of estimate;
A28: PROFESSIONAL SERVICES | C28: =NOW() -> 2023-05-16T18:22:29.920 | F28: =DATE(YEAR(C28)+1,MONTH(C28),DAY(C28)) -> 2024-05-16 | G28: =DATE(YEAR(F28)+1,MONTH(F28),DAY(F28)) -> 2025-05-16 | H28: =DATE(YEAR(G28)+1,MONTH(G28),DAY(G28)) -> 2026-05-16 | I28: =DATE(YEAR(H28)+1,MONTH(H28),DAY(H28)) -> 2027-05-16 | J28: 2028-05-16 | K28: 2029-05-16 | L28: 2030-05-16 | M28: 2031-05-16 | N28: 2032-05-16
A29: Estimator to enter assumed annual fluctuation profile: (% shown in template are for example only) | F29: 1.00% | G29: 1.00% | H29: 2.00% | I29: 2.00% | J29: 2.00% | K29: 2.00% | L29: 2.00% | M29: 2.00% | N29: 2.00%
A31: Name | B31: Average Cost Per Km | C31: Base Estimate based on current year "0" rates | D31: Row ID | E31: Year # constructed or completed; | F31: YEAR PROFILE | O31: Escalated Base Estimate | P31: Escalation
C32: 0 | F32: 1 | G32: 2 | H32: 3 | I32: 4 | J32: 5 | K32: 6 | L32: 7 | M32: 8 | N32: 9
A33: Project Development Fees & Costs | C33: $100,000 | D33: 2 | E33: 1 | F33: =IF(F$32<=$E33,C33*(1+F$29),"") -> $101,000 | G33: =IF(G$8<=$E33,F33*(1+G$29),"") ->  | O33: =HLOOKUP(E33,$F$32:$N$46,D33,FALSE) -> $101,000 | P33: =O33-C33 -> $1,000
A34: Pre-Implementation Fees and Costs | C34: $200,000 | D34: 3 | E34: 3 | F34: =IF(F$32<=$E34,C34*(1+F$29),"") -> $202,000 | G34: $204,020 | H34: $208,100 | O34: =HLOOKUP(E34,$F$32:$N$46,D34,FALSE) -> $208,100 | P34: =O34-C34 -> $8,100
A35: Implementation Fees & Costs(MSQA) | C35: $300,000 | D35: 4 | E35: 5 | F35: $303,000 | G35: $306,030 | H35: $312,151 | I35: $318,394 | J35: $324,761 | O35: $324,761 | P35: $24,761
D36: 5 | E36: 1 | F36: 0 | O36: 0 | P36: 0
D37: 6 | E37: 1 | F37: 0 | O37: 0 | P37: 0
D38: 7 | E38: 1 | F38: 0 | O38: 0 | P38: 0
D39: 8 | E39: 1 | F39: 0 | O39: 0 | P39: 0
D40: 9 | E40: 1 | F40: 0 | O40: 0 | P40: 0
D41: 10 | E41: 1 | F41: 0 | O41: 0 | P41: 0
D42: 11 | E42: 1 | F42: 0 | O42: 0 | P42: 0
D43: 12 | E43: 1 | F43: 0 | O43: 0 | P43: 0
D44: 13 | E44: 1 | F44: 0 | O44: 0 | P44: 0
D45: 14 | E45: 1 | F45: 0 | O45: 0 | P45: 0
D46: 15 | E46: 1 | F46: 0 | O46: 0 | P46: 0
B47: TOTAL | C47: =SUM(C33:C46) -> $600,000 | O47: =SUM(O33:O46) -> $633,862 | P47: =SUM(P33:P46) -> $33,862

Sheet Fees & AT costs scale
B1: Cost ratios spanning 3 phases: Project development(PBE,IBE,DBE); Pre-implementation(PE1); Implementation(PE2).
A2: PHASE | B2: D.2 Physical Works cost($m): | C2: < $5 | D2: $20 | E2: $50 | F2: $100 | G2: $250 | H2: $500
A3: DEVELOPMENT | B3: AT Managed Costs - Development | C3: 6.0% | D3: 4.5% | E3: 3.3% | F3: 2.4% | G3: 1.7% | H3: 1.3%
B4: Consultancy Fees - Development | C4: 12.0% | D4: 9.8% | E4: 7.8% | F4: 6.0% | G4: 5.0% | H4: 4.5%
B5: DEVELOPMENT SUBTOTAL: | C5: =C3+C4 -> 18.0% | D5: =D3+D4 -> 14.3% | E5: 11.1% | F5: 8.4% | G5: 6.7% | H5: 5.8%
A6: PRE-IMPLEMENTATION | B6: AT Managed Costs - Pre-Implementation | C6: 6.0% | D6: 4.7% | E6: 3.7% | F6: 2.8% | G6: 2.0% | H6: 1.5%
B7: Consultancy Fees - Pre-Implementation | C7: 10.0% | D7: 8.3% | E7: 7.0% | F7: 6.0% | G7: 5.2% | H7: 4.5%
B8: PRE-IMPLEMENTATION SUBTOTAL: | C8: =C6+C7 -> 16.0% | D8: =D6+D7 -> 13.0% | E8: 10.7% | F8: 8.8% | G8: 7.2% | H8: 6.0%
A9: IMPLEMENTATION | B9: AT Managed Costs - Implementation | C9: 3.0% | D9: 2.5% | E9: 2.2% | F9: 1.9% | G9: 1.7% | H9: 1.5%
B10: Consultancy Fees - Implementation | C10: 7.0% | D10: 6.0% | E10: 5.2% | F10: 4.5% | G10: 3.9% | H10: 3.5%
B11: IMPLEMENTATION SUBTOTAL: | C11: =C9+C10 -> 10.0% | D11: =D9+D10 -> 8.5% | E11: 7.4% | F11: 6.4% | G11: 5.6% | H11: 5.0%
A12: ENTITY SUBTOTALS - ALL PHASES | B12: AT Managed Costs - Total | C12: =C3+C6+C9 -> 15.0% | D12: 11.7% | E12: 9.2% | F12: 7.1% | G12: 5.4% | H12: 4.3%
B13: Consultancy Fees - Total | C13: 29.0% | D13: 24.1% | E13: 20.0% | F13: 16.5% | G13: 14.1% | H13: 12.5%
B14: GRAND TOTAL - ALL PHASES: | C14: =C12+C13 -> 44.0% | D14: =D12+D13 -> 35.8% | E14: 29.2% | F14: 23.6% | G14: 19.5% | H14: 16.8%
B19: Fees Sunk / Not-Sunk vs phase
C20: PBE | D20: IBE | E20: DBE | F20: PE1 | G20: PE2(EE)
B21: Project Development Consultancy Fees | C21: Not sunk | D21: Not sunk | E21: Sunk | F21: Sunk | G21: Sunk
B22: Project Development AT costs | C22: Not sunk | D22: Not sunk | E22: Sunk | F22: Sunk | G22: Sunk
B23: Pre-Implementation Consultancy Fees | C23: Not sunk | D23: Not sunk | E23: Not sunk | F23: Not sunk | G23: Sunk
B24: Pre-Implementation AT costs | C24: Not sunk | D24: Not sunk | E24: Not sunk | F24: Not sunk | G24: Sunk
B25: Implementation Consultancy Fees | C25: Not sunk | D25: Not sunk | E25: Not sunk | F25: Not sunk | G25: Not sunk
B26: Implementation AT costs | C26: Not sunk | D26: Not sunk | E26: Not sunk | F26: Not sunk | G26: Not sunk
